Cogmind - Beta 14 @@@ ROGUE MODE // 2024.09.30 @ 23:39:42 Player: Triffids Result: Self-destructed Performance ------------- Evolutions (2) 1000 Regions Visited (3) 600 Robots Destroyed (36) 180 Value Destroyed (944) 944 Prototype IDs (4) 80 Alien Tech Used (0) 0 Bonus (33) 33 TOTAL SCORE: 2837 Bonus ------- High Alert Combat Kills 33 Cogmind --------- Core Integrity 550/550 Matter 300/300 Energy 160/160 System Corruption 0% Temperature Cool (0) Movement Walking (120) Location -8/Materials Parts ------- > --- POWER (1) -------- Light Nuclear Core > --- PROPULSION (4) --- Light Treads Aluminum Leg Aluminum Leg Carbon-fiber Leg > --- UTILITY (4) ------ Cooling System Small Storage Unit Seismic Detector Improved Light Armor Plating > --- WEAPON (2) ------- Beam Rifle Gauss Rifle > --- INVENTORY (8) ---- Reinforced Ion Engine Light Nuclear Core Medium Matter Pod (100) Hardened Light Armor Plating Improved Light Armor Plating Beam Rifle Heavy Assault Rifle Mini Grenade Launcher Peak State ------------ > --- POWER ------------ Light Nuclear Core > --- PROPULSION ------- Light Treads Aluminum Leg Aluminum Leg Carbon-fiber Leg > --- UTILITY ---------- Cooling System Small Storage Unit Improved Light Armor Plating Improved Light Armor Plating > --- WEAPON ----------- Beam Rifle Gauss Rifle > --- INVENTORY -------- Reinforced Ion Engine Light Nuclear Core Medium Matter Pod Light Armor Plating Hardened Light Armor Plating Beam Rifle Heavy Assault Rifle Mini Grenade Launcher [Rating: 25] Favorites ----------- Power Light Nuclear Core Engine Ion Engine Power Core Light Nuclear Core Propulsion Aluminum Leg Treads Light Treads Leg Aluminum Leg Utility Heat Sink Device Heat Sink Storage Small Storage Unit Protection Light Armor Plating Weapon Heavy Assault Rifle Energy Gun Spread Laser Ballistic Gun Heavy Assault Rifle Build | -11 -10 -9 -8 ------- Run | Yrd Mat Mat Mat Slots Evolved 4 | . . 2 2 Power . | . . . . Propulsion 2 | . . . 2 Utility 2 | . . 2 . Weapon . | . . . . Parts Attached 43 | 7 7 19 10 Power 5 | 1 1 2 1 Engine 3 | 1 1 1 . Core 2 | . . 1 1 Reactor . | . . . . Propulsion 12 | 2 2 4 4 Treads 3 | . . . 3 Leg 9 | 2 2 4 1 Wheel . | . . . . Hover . | . . . . Flight . | . . . . Utility 16 | 2 1 9 4 Device 7 | 1 1 3 2 Storage 3 | 1 . 2 . Processor . | . . . . Hackware . | . . . . Protection 6 | . . 4 2 Artifact . | . . . . Weapon 10 | 2 3 4 1 Energy Gun 7 | 2 2 3 . Energy Cannon . | . . . . Ballistic Gun 3 | . 1 1 1 Ballistic Cannon . | . . . . Launcher . | . . . . Special Weapon . | . . . . Impact Weapon . | . . . . Slashing Weapon . | . . . . Piercing Weapon . | . . . . Special Melee Weapon . | . . . . Unidentified Prototypes . | . . . . Parts Lost 4 | . 1 3 . Power 1 | . 1 . . Propulsion 1 | . . 1 . Utility 1 | . . 1 . Weapon 1 | . . 1 . Highest Loss Streak 2 | . 1 2 . To Critical Strikes . | . . . . Average Slot Usage (%) 97 | . 100 97 95 Engine 5 | . 14 6 . Core 5 | . . 4 9 Treads 3 | . . . 12 Leg 22 | . 28 21 18 Device 18 | . 18 19 16 Storage 10 | . 9 11 9 Protection 8 | . . 10 10 Energy Gun 15 | . 21 16 9 Ballistic Gun 6 | . 7 5 9 Peak Build Rating 25 | 7 10 15 25 Average Rating 12 | 5 8 12 18 On Entrance 7 | . 7 9 15 Naked Turns . | . . . . Heaviest Build 25 | 13 17 24 25 Greatest Support 35 | 20 20 20 35 Greatest Overweight (x) 1 | 1 . 1 1 Average Overweight (x) . | . . . . Largest Inventory Capacity 8 | 8 8 8 8 Average Capacity 7 | 7 7 6 8 Most Carried 8 | 5 8 8 8 Average Carried 6 | 2 6 5 7 Final Capacity 8 | 8 5 8 8 Final Carried 8 | 5 5 8 8 Class Distribution -------------------- 83% | Scavenger-Mutant 16% | Mutant Dominant Class ---------------- Mutant | -10/Materials Scavenger-Mutant | -9/Materials Scavenger-Mutant | -8/Materials Resources | -11 -10 -9 -8 ----------- Run | Yrd Mat Mat Mat Matter Collected 863 | 270 126 322 145 Remotely . | . . . . Salvage Created 1341 | 107 166 805 263 Parts 90 | 9 22 47 12 Haulers Intercepted 3 | . 2 . 1 Recyclers Shooed . | . . . . Parts Field Recycled . | . . . . Retrieved Matter . | . . . . Parts Self-Destructed . | . . . . Prevented . | . . . . Kills | -11 -10 -9 -8 ------- Run | Yrd Mat Mat Mat Combat Hostiles Destroyed 23 | . 7 14 2 Guns 21 | . 5 14 2 AOE 2 | . 2 . . Classes Destroyed 11 | 2 5 3 1 Worker 1 | . 1 . . Builder 1 | . 1 . . Tunneler 2 | 2 . . . Hauler 3 | . 2 . 1 Recycler 4 | 1 . 2 1 Watcher 2 | . . 2 . Swarmer 6 | . 6 . . Grunt 6 | . 1 5 . Brawler 3 | . . 3 . Sentry 7 | . . 6 1 Hunter 1 | . . . 1 Best Kill Streak 9 | 2 9 5 2 Combat Bots Only 7 | . 7 3 1 Max Kills in Single Turn 4 | 1 4 1 1 Gunslinging . | . . . . Exploded 2 | . 2 . . Melee . | . . . . Uniques/NPCs Destroyed . | . . . . Combat | -11 -10 -9 -8 -------- Run | Yrd Mat Mat Mat Hostile Shots Fired 124 | . 33 73 18 Missed 36 | . 9 20 7 Damage Taken 1128 | . 255 695 178 Core 115 | . 36 79 . Absorbed by Shields . | . . . . Core Remaining (%) 88 | 100 85 80 . Volleys Fired 87 | 10 15 48 14 Largest 2 | 2 2 2 2 Hottest 130 | 100 88 130 84 Shots Fired 169 | 20 27 94 28 Gun 169 | 20 27 94 28 Cannon . | . . . . Launcher . | . . . . Special . | . . . . Kinetic 50 | . 15 21 14 Thermal 119 | 20 12 73 14 Explosive . | . . . . Electromagnetic . | . . . . Robot Hit Streak 12 | 5 9 12 9 Robot Miss Streak 7 | 3 7 6 3 Penetration Max . | . . . . Secondary Targets 3 | . 2 1 . Max Gunslinging Chain 1 | . 1 1 . Shots Hit Robots 112 | 11 16 68 17 Core Hits 92 | 4 27 53 8 Critical Kills . | . . . . Critical Parts Destroyed . | . . . . Critical Strikes 2 | . . . 2 Burn 2 | . . . 2 Melee Attacks . | . . . . Impact . | . . . . Slashing . | . . . . Piercing . | . . . . Sneak Attacks . | . . . . Combat Hostiles . | . . . . Follow-up Attacks . | . . . . Damage Inflicted 2176 | 137 807 1004 228 Guns 1603 | 137 234 1004 228 Cannons . | . . . . Explosions 573 | . 573 . . Melee . | . . . . Ramming . | . . . . Kinetic 437 | . 92 203 142 Thermal 1739 | 137 715 801 86 Explosive . | . . . . Electromagnetic . | . . . . Impact . | . . . . Slashing . | . . . . Piercing . | . . . . Highest Corruption . | . . . . Average Corruption . | . . . . Corruption Purged . | . . . . Corruption Blocked . | . . . . Overload Shots . | . . . . Overflow Damage 138 | . 138 . . Projectiles . | . . . . Explosions 138 | . 138 . . Melee . | . . . . Knockbacks . | . . . . Impact . | . . . . Kinetic . | . . . . Secondary . | . . . . Self-Inflicted Damage . | . . . . Shots . | . . . . Rammed . | . . . . Targets Rammed . | . . . . Kicked . | . . . . Crushed . | . . . . Highest Temperature 390 | 198 198 390 . Average Temperature 104 | 85 82 118 . Received Heat Transfer 405 | . 87 300 18 Effects 3 | . . 3 . Shutdowns 1 | . . 1 . Interference 1 | . . 1 . Short Circuit 1 | . . 1 . Siege Activations . | . . . . Robots Corrupted . | . . . . Combat Hostiles . | . . . . Parts Fried . | . . . . Impact Corruptions . | . . . . Robots Melted . | . . . . Combat Hostiles . | . . . . Parts Melted 2 | 1 1 . . Heat Transferred 2791 | 407 530 1484 370 Parts Sabotaged . | . . . . Parts Stolen . | . . . . Parts Stripped . | . . . . Power Chain Reactions . | . . . . Alert | -11 -10 -9 -8 ------- Run | Yrd Mat Mat Mat Peak Influence 488 | 15 417 488 248 Initial 176 | . 9 176 157 Average 245 | 5 189 328 164 Maximum Alert Level 2 | . 2 2 1 Low Security (%) 39 | 100 52 6 85 Level 1 47 | . 25 76 14 Level 2 12 | . 21 17 . Level 3 . | . . . . Level 4 . | . . . . Level 5 . | . . . . High Security . | . . . . Max Security . | . . . . Squads Dispatched . | . . . . Investigation . | . . . . Extermination . | . . . . Reinforcement . | . . . . Assault . | . . . . Garrison . | . . . . Intercept . | . . . . Searches Triggered . | . . . . Construction Impeded . | . . . . Haulers Reinforced . | . . . . Active Scanning Responses . | . . . . Cargo Convoy Interrupts . | . . . . Stealth | -11 -10 -9 -8 --------- Run | Yrd Mat Mat Mat Distress Signals 4 | . 2 2 . Communications Jammed . | . . . . Distress Signals . | . . . . Times Spotted 41 | . 14 24 3 Peak Tracking Total 7 | . 7 4 1 Tactical Retreats 3 | . 1 2 . Traps | -11 -10 -9 -8 ------- Run | Yrd Mat Mat Mat Traps Triggered . | . . . . Indirectly . | . . . . Trap Hack Attempts . | . . . . Triggered . | . . . . Disarmed . | . . . . Reprogrammed . | . . . . Reused . | . . . . Traps Extracted . | . . . . Installed . | . . . . Triggered . | . . . . Machines | -11 -10 -9 -8 ---------- Run | Yrd Mat Mat Mat Machines Disabled 12 | . 11 1 . Max in Single Turn 11 | . 11 1 . Machines Repaired . | . . . . Machines Dismantled . | . . . . Machines Sabotaged . | . . . . Overloaded Fab Kills . | . . . . Hacking | -11 -10 -9 -8 --------- Run | Yrd Mat Mat Mat Machines Accessed 11 | . 3 4 4 Terminals 9 | . 1 4 4 Fabricators . | . . . . Repair Stations . | . . . . Recycling Units 2 | . 2 . . Scanalyzers . | . . . . Garrison Access . | . . . . Total Hacks 43 | . 7 18 18 Successful 23 | . 5 9 9 Failed 20 | . 2 9 9 Catastrophic 2 | . . 1 1 Database Lockouts . | . . . . Manual 28 | . 5 12 11 Terminals 40 | . 4 18 18 Fabricators . | . . . . Repair Stations . | . . . . Recycling Units 3 | . 3 . . Scanalyzers . | . . . . Garrison Access . | . . . . Terminal Hacks 12 | . 1 6 5 Robot Analysis 2 | . 1 1 . Prototype ID Bank 3 | . . 2 1 Level Access Points 1 | . . . 1 Branch Access Points 2 | . . 1 1 Terminal Index 2 | . . 1 1 Hauler Manifests 2 | . . 1 1 Fabricator Hacks . | . . . . Repair Station Hacks . | . . . . Recycling Unit Hacks 2 | . 2 . . Report Inventory 2 | . 2 . . Scanalyzer . | . . . . Garrison Access Hacks . | . . . . Unauthorized Hacks 9 | . 2 3 4 Terminals 8 | . 1 3 4 Track 1 | . . . 1 Botnet 5 | . . 3 2 Disrupt 1 | . 1 . . Operators 1 | . . . 1 Fabricators . | . . . . Repair Stations . | . . . . Recycling Units 1 | . 1 . . Monitor 1 | . 1 . . Scanalyzers . | . . . . Garrison Access . | . . . . Data Cores Recovered . | . . . . Used . | . . . . Hacking Detections 10 | . 2 4 4 Full Trace Events . | . . . . Feedback Events . | . . . . Feedback Blocked . | . . . . Robot Schematics Acquired . | . . . . Robots Built . | . . . . Authchips . | . . . . Time . | . . . . Total Robot Build Rating . | . . . . Part Schematics Acquired . | . . . . Parts Built . | . . . . Authchips . | . . . . Time . | . . . . Total Part Build Rating . | . . . . Parts Repaired . | . . . . Time . | . . . . Parts Recycled . | . . . . Recycled Matter . | . . . . Retrieved Matter . | . . . . Retrieved Components . | . . . . Parts Scanalyzed . | . . . . Part Schematics Acquired . | . . . . Parts Damaged . | . . . . Bothacking | -11 -10 -9 -8 ------------ Run | Yrd Mat Mat Mat Used RIF Installer . | . . . . Robots Hacked . | . . . . Non-combat . | . . . . Combat . | . . . . Robot Hacks Applied . | . . . . Relay Couplers Released . | . . . . Fabnet Peak Effective % . | . . . . Robots Rewired . | . . . . Allies Hacked . | . . . . Hacks Repelled . | . . . . Allies | -11 -10 -9 -8 -------- Run | Yrd Mat Mat Mat Total Allies . | . . . . Largest Group . | . . . . Highest-Rated Group . | . . . . Highest-Rated Ally . | . . . . Total Orders . | . . . . Ally Attacks . | . . . . Total Damage . | . . . . Kills . | . . . . Allies Corrupted . | . . . . Allies Melted . | . . . . Intel | -11 -10 -9 -8 ------- Run | Yrd Mat Mat Mat Robot Analysis Total 2 | . 1 1 . Derelict Logs Recovered . | . . . . Drone Launches . | . . . . Drone Recoveries . | . . . . Exploration | -11 -10 -9 -8 ------------- Run | Yrd Mat Mat Mat Turns Passed 1842 | 93 343 941 465 Spaces Moved 933 | 43 228 439 223 Core 15 | 15 . . . Treads . | . . . . Legs 918 | 28 228 439 223 Wheels . | . . . . Hover . | . . . . Flight . | . . . . Fastest Speed 50 | 50 120 120 120 Average Speed 153 | 107 120 161 180 Slowest Speed 190 | 120 120 190 190 Overloaded Moves . | . . . . Propulsion Burnouts . | . . . . Robots Hopped . | . . . . Cave-ins Triggered . | . . . . Exploration Rate (%) 31 | 3 54 47 21 Regions Visited 3 Branch Regions . Pre-discovered Areas . | . . . . Known Exits Taken . | . . . . Unknown Exits Taken 3 | 1 1 1 . Scrap Searched . | . . . . Spaces Dug . | . . . . Terrain Destroyed 17 | . 17 . . Melee . | . . . . Projectile . | . . . . AOE 17 | . 17 . . Terrain Rammed . | . . . . Walls Destroyed . | . . . . Machines Disabled . | . . . . Actions | -11 -10 -9 -8 --------- Run | Yrd Mat Mat Mat Total 1181 | 68 276 579 258 Wait 50 | 1 5 42 2 Move 930 | 42 227 438 223 Hop . | . . . . Pick Up 34 | 8 9 15 2 Fast Attach 10 | 4 1 3 2 Attach 8 | 3 1 2 2 Detach . | . . . . Swap 25 | . 5 14 6 Drop 37 | . 13 17 7 Fire 87 | 10 15 48 14 Melee . | . . . . Ram . | . . . . Kick . | . . . . Crush . | . . . . Escape Stasis . | . . . . Rewire . | . . . . Trap . | . . . . Miscellaneous . | . . . . Route ------- -11/Scrapyard -10/Materials (discovered 2 exits: *Mat / [*Min]) -9/Materials (discovered 4 exits: *Mat / *Min x2 / Sto) -8/Materials (discovered 3 exits: Fac x3) History --------- Turn | Location | Event 17 | -11/Scrapyard | Discovered new exit (range 16) 94 | -11/Scrapyard | Entered Materials 251 | -10/Materials | Discovered new exit (range 9) 305 | -10/Materials | Build established: Mutant 321 | -10/Materials | Destroyed 7 combat bots 365 | -10/Materials | Discovered new exit (range 7) 437 | -10/Materials | Entered another Materials area 437 | -9/Materials | Evolved 2 slots: Utility x2 636 | -9/Materials | Build established: Scavenger-Mutant 1113 | -9/Materials | Discovered new exit (range 8) 1140 | -9/Materials | Identified exit to Mines 1140 | -9/Materials | Identified exit to Storage 1353 | -9/Materials | Discovered new exit (range 14) 1378 | -9/Materials | Entered another Materials area 1378 | -8/Materials | Evolved 2 slots: Propulsion x2 1710 | -8/Materials | Identified exit to Factory 1843 | -8/Materials | Self-destructed Last Messages --------------- 01774_ Slug penetrates Wall. 01775_ H-55 Commando destroyed. 01782_ Acquired 47 matter. 01787_ Acquired 8 matter. 01791_ Dropped Lgt. Treads. 01792_ Acquired Carbon-fiber Leg. 01794_ Dropped Hvy. Assault Rifle. 01802_ R-06 Scavenger collects Cesium-ion Thruster. 01806_ R-06 Scavenger collects Weight Redist. System. 01809_ R-06 Scavenger collects Ion Engine. 01813_ Slug penetrates Y-45 Defender. 01819_ Y-45 Defender destroyed. 01819_ Slug penetrates Wall. 01819_ K-01 Serf cleans the Electrolysis Chamber. 01826_ Dropped Lgt. Armor Plating. 01827_ Acquired Seismic Detector. 01831_ Acquired 44 matter. 01833_ Dropped Lgt. Treads. 01834_ Acquired 10 matter. 01842_ K-01 Serf collects debris. Map ----- +----------------------------------------------------+ | ####+########### """ # # #???? | | # """"" # + """"""" #???? | | #? """"" + # """""""?????? | | # """"" # * # """"""" #???? | | ####+####### # """ # ###### """"""" #???? | | ?# #??# # ! # %#????# """"""" #???? | | ?# #??# ########## #????# #???? | | ?# ! #??# #????# ! ! #???? | | ?# #??# #????##+########???? | | ?# "T" #??# ########## %#?????# #??????????? | | ?# """ #??# ########?# #???### ##?????????? | | ?########??# # = ### ##### #?????????? | | ???????????# # !+ #?????????? | | ???????????# # [[ ### T #?????????? | | ???????????# + #?## ##### #?????????? | | ???????????# # #??# #???##/#######?????? | | ???????????# # #??# #???# #?????? | | ???????????# ########??# #???# #?????? | | ??????????? ?????????# #???# #?????? | | ??????????? ?????????# #???# ! #?????? | | ??????????? ???????###+##### #?????? | | ??????????? ???????#= # !! #?????? | | ???????????? ????????# # !! #?????? | | ???????????????????????# !# !! #?????? | | ???????????????????????# !* !=# #?????? | | ???????????????????????# @* !%##########?????? | | ???????????????????????# [ #?????????????? | | ???????????????????????# ##?????????????? | | ???????????????????????# """ #??????????????? | | ???????????????????????# """ #??????????????? | | ???????????????????????# """ #??????????????? | | ???????????????????????# k #??????????????? | | ???????????????????????####/####??????????????? | | ?????????????????????????? ?????????????????? | | ?????????????????????????? ??